bitfinex/quotes_SOLUSD_20240921
["timestamp","ask_amount","ask_price","bid_price","bid_amount"]
[1726896580986,15.4328,145.75,145.68,43.776884]
[1726896581194,15.4328,145.75,145.68,36.4982652]
[1726896581481,15.4328,145.75,145.69,20.0]
[1726896584691,15.4328,145.75,145.7,23.776884]
[1726896586775,15.4328,145.75,145.69,20.0]
[1726896586974,15.4328,145.75,145.7,20.0]
[1726896593091,15.4328,145.75,145.67,20.0]
[1726896593615,15.4328,145.75,145.69,20.0]
[1726896594101,15.4328,145.75,145.7,23.776884]
[1726896594302,15.4328,145.75,145.71,20.0]
[1726896594880,15.4328,145.75,145.72,23.776884]
[1726896595086,15.4328,145.75,145.73,20.0]
[1726896600507,15.4328,145.75,145.74,23.776884]
[1726896601602,15.4328,145.75,145.66,20.12549]
[1726896601907,15.4328,145.75,145.69,20.0]
[1726896603005,15.4328,145.75,145.71,20.0]
[1726896603405,15.4328,145.75,145.72,23.776884]
[1726896604186,15.4328,145.75,145.73,20.0]
[1726896604507,6.3171,145.77,145.74,23.776884]
[1726896604880,0.2488785,145.78,145.74,23.776884]
[1726896606893,0.2488785,145.78,145.76,23.776884]
[1726896610095,0.2488785,145.78,145.75,43.776884]
[1726896613414,0.2488785,145.78,145.75,56.4982652]
[1726896615802,0.2488785,145.78,145.75,43.776884]
[1726896623922,0.2488785,145.78,145.75,56.4982652]
[1726896628917,0.2488785,145.78,145.77,12.7213812]
[1726896629109,0.2488785,145.78,145.77,36.4982652]
[1726896630007,0.2488785,145.78,145.77,58.12093015]
[1726896630321,0.2488785,145.83,145.78,44.027864]
[1726896630508,0.2488785,145.83,145.81,23.776884]
[1726896636514,0.2488785,145.83,145.82,34.0926205]
[1726896636920,0.2488785,145.83,145.82,57.8695045]
[1726896637835,0.2488785,145.83,145.82,56.4982652]
[1726896640736,0.2488785,145.83,145.82,56.7492452]
[1726896655826,0.2488785,145.83,145.82,44.027864]
[1726896656037,0.2488785,145.83,145.82,43.776884]
[1726896656727,0.2488785,145.83,145.82,56.7492452]
[1726896656938,0.2488785,145.83,145.82,58.12039974]
[1726896657123,0.051642,145.85,145.82,58.12039974]
[1726896657328,0.051642,145.85,145.84,32.9723612]
[1726896657731,0.051642,145.85,145.84,34.34310829]
[1726896658246,0.051642,145.85,145.84,32.9723612]
[1726896659524,0.051642,145.85,145.84,56.7492452]
[1726896662749,0.2488785,145.87,145.84,58.11983061]
[1726896662931,0.2488785,145.91,145.84,58.11983061]
[1726896662932,0.2488785,145.91,145.86,32.9723612]
[1726896663247,0.2488785,145.91,145.9,32.7213812]
[1726896663654,0.2488785,145.91,145.89,12.7213812]
[1726896663857,0.2488785,145.91,145.9,20.0]
[1726896664952,0.2488785,145.91,145.9,43.776884]
[1726896668253,0.2488785,145.91,145.9,58.11969766]
[1726896671440,0.2488785,145.91,145.9,56.7492452]
[1726896671949,0.2488785,145.91,145.9,44.027864]
[1726896672152,0.2488785,145.91,145.9,56.7492452]
[1726896672449,0.2488785,145.91,145.86,12.7213812]
[1726896673840,0.2488785,145.91,145.87,24.027864]
[1726896674756,0.2488785,145.91,145.82,58.87306373]
[1726896674961,0.2488785,145.91,145.84,12.7213812]
[1726896675256,0.2488785,145.91,145.82,2.02491429]
[1726896675449,0.2488785,145.91,145.82,12.7213812]
[1726896675660,30.24948,145.9,145.77,3.23778315]
[1726896675863,23.1445,145.9,145.81,12.7213812]
[1726896676051,23.1445,145.9,145.82,12.7213812]
[1726896677263,23.1445,145.9,145.83,20.0]
[1726896677454,23.1445,145.9,145.83,23.776884]
[1726896678863,23.1445,145.9,145.85,23.776884]
[1726896680784,23.1445,145.9,145.87,23.776884]
[1726896681583,16.5092,145.9,145.87,23.776884]
[1726896686888,0.2488785,145.91,145.89,36.4982652]
[1726896687074,0.2488785,145.91,145.9,56.7492452]
[1726896687383,0.2488785,145.91,145.9,44.027864]
[1726896687585,0.2488785,145.91,145.9,43.902374]
[1726896689673,0.2488785,145.91,145.9,56.6237552]
[1726896696588,0.2488785,145.91,145.9,56.7492452]
[1726896705918,0.0972572,145.93,145.91,24.027864]
[1726896706098,0.0972572,145.93,145.92,56.7492452]
[1726896714927,0.0972572,145.93,145.92,44.027864]
[1726896715227,0.0972572,145.93,145.92,56.7492452]
[1726896721321,0.334141,145.96,145.92,56.7492452]
[1726896721322,0.334141,145.96,145.93,0.25098]
[1726896721521,0.0972572,146.02,145.96,20.25098]
[1726896721720,0.0972572,146.02,145.99,20.0]
[1726896722533,0.0972572,146.02,145.99,21.36960834]
[1726896723735,0.0972572,146.02,145.99,45.14649234]
[1726896723917,0.0972572,146.02,145.99,56.7492452]
[1726896731019,0.0972572,146.02,145.95,2.01174958]
[1726896731231,0.0972572,146.02,145.93,20.0]
[1726896731232,0.0972572,146.02,145.98,20.0]
[1726896731638,0.0972572,146.02,145.98,32.7213812]
[1726896732339,0.0972572,146.02,145.92,24.2642292]
[1726896732340,0.0972572,146.02,145.99,56.4982652]
[1726896732514,0.0972572,146.02,145.99,43.776884]
[1726896739156,0.0972572,146.02,145.99,56.6237552]
[1726896741942,0.0972572,146.02,145.99,56.7492452]
[1726896744432,0.0972572,146.02,145.99,44.027864]
[1726896744633,0.0972572,146.02,145.99,56.7492452]
[1726896745860,0.0972572,146.02,145.99,58.1185038]
[1726896747063,0.0972572,146.02,145.99,56.7492452]
[1726896747559,0.0972572,146.02,145.99,44.027864]
[1726896747861,0.0972572,146.02,145.99,56.7492452]
[1726896752278,0.0972572,146.02,145.99,58.11855024]
[1726896752580,0.0972572,146.02,145.99,56.7492452]
[1726896752741,0.0972572,146.02,145.99,58.11855169]
[1726896752944,0.0972572,146.02,145.99,56.7492452]
[1726896753357,0.0972572,146.02,145.99,58.11848566]
[1726896753558,0.0972572,146.02,146.0,44.027864]
[1726896753770,0.0972572,146.02,146.01,58.1184397]
[1726896754065,0.0972572,146.02,146.01,56.7492452]
[1726896757767,0.3143574,146.05,146.01,56.7492452]
[1726896757768,0.3143574,146.05,146.02,44.027864]
[1726896758070,0.3143574,146.05,146.04,56.7492452]
[1726896760077,0.3143574,146.05,146.04,43.776884]
[1726896760254,0.3143574,146.05,146.03,20.0]
[1726896760983,0.3143574,146.05,146.0,2.0392124]
[1726896761152,0.3143574,146.05,146.02,12.7213812]
[1726896761352,0.3143574,146.05,146.03,20.0]
[1726896761552,0.3143574,146.05,146.04,43.776884]
[1726896770660,0.3143574,146.05,146.04,56.7492452]
[1726896770963,0.3143574,146.05,146.04,44.027864]
[1726896771159,0.3143574,146.05,146.04,43.776884]
[1726896772491,0.3143574,146.05,146.04,56.4982652]
[1726896774197,0.3143574,146.05,146.04,56.7492452]
[1726896774869,0.3143574,146.05,146.04,43.776884]
[1726896775574,0.3143574,146.05,145.93,21.4458]
[1726896775767,16.0957,146.04,145.97,12.7213812]
[1726896775968,16.0957,146.04,145.98,12.7213812]
[1726896776187,16.0957,146.04,145.93,23.51498281]
[1726896776498,22.5681,146.04,145.96,12.7213812]
[1726896777492,22.5681,146.04,145.97,12.7213812]
[1726896778088,22.5681,146.04,145.98,23.776884]
[1726896778269,22.5681,146.04,146.0,23.776884]
[1726896778468,22.5681,146.04,145.93,2.06918281]
[1726896778687,22.5681,146.04,145.95,20.0]
[1726896778890,22.5681,146.04,145.95,32.7213812]
[1726896779073,22.5681,146.04,145.96,12.7213812]
[1726896779270,22.5681,146.04,145.97,20.0]
[1726896779993,22.5681,146.04,145.98,23.776884]
[1726896783271,22.5681,146.04,145.99,21.36991648]
[1726896783503,22.5681,146.04,146.0,23.776884]
[1726896783682,22.5681,146.04,146.02,23.776884]
[1726896783991,16.0957,146.04,146.02,23.776884]
[1726896785679,16.0957,146.04,146.01,43.776884]
[1726896786689,16.0957,146.04,146.03,23.776884]
[1726896786876,16.0957,146.04,146.01,43.776884]
[1726896787393,16.0957,146.04,146.01,56.4982652]
[1726896788297,16.0957,146.04,146.01,43.776884]
[1726896792309,16.0957,146.04,145.9,1.19019273]
[1726896792601,16.0957,146.04,145.98,20.0]
[1726896792800,16.0957,146.04,145.95,12.7213812]
[1726896793111,6.4565,146.03,145.95,12.7213812]
[1726896793607,6.4565,146.03,145.96,12.7213812]
[1726896793805,6.4565,146.03,145.97,12.7213812]
[1726896794905,6.4565,146.03,145.99,23.776884]
[1726896795404,16.0957,146.04,146.01,23.776884]
[1726896795897,16.0957,146.04,146.0,23.776884]
[1726896797992,16.0957,146.04,145.99,23.776884]
[1726896800407,0.12549,146.03,145.9,22.0221]
[1726896800581,6.6131,146.02,145.91,12.7213812]
[1726896800781,16.6652,146.01,145.91,12.7213812]
[1726896801793,16.6652,146.01,145.94,23.776884]
[1726896801995,16.6652,146.01,145.96,23.776884]
[1726896802507,16.6652,146.01,145.95,44.027864]
[1726896805391,16.6652,146.01,145.95,43.776884]
[1726896808117,16.6652,146.01,145.95,56.4982652]
[1726896810703,16.6652,146.01,145.95,43.776884]
[1726896816727,16.6652,146.01,145.97,23.776884]
[1726896817321,16.6652,146.01,145.96,23.776884]
[1726896818523,16.6652,146.01,145.98,23.776884]
[1726896819503,16.6652,146.01,146.0,23.776884]
[1726896819706,16.1719574,146.05,146.0,23.776884]
[1726896821628,16.1719574,146.05,145.99,43.776884]
[1726896824225,16.1719574,146.05,145.99,56.4982652]
[1726896829333,16.1719574,146.05,145.99,43.776884]
[1726896837530,16.1719574,146.05,146.01,23.776884]
[1726896837531,0.3143574,146.05,146.01,23.776884]
[1726896841128,0.3143574,146.05,146.03,23.776884]
[1726896842315,0.3143574,146.05,146.03,25.14626026]
[1726896842627,0.3143574,146.05,146.03,23.776884]
[1726896843128,0.3143574,146.05,146.03,25.14625952]
[1726896844126,0.3143574,146.05,146.04,20.0]
[1726896844327,0.3143574,146.05,146.04,56.4982652]
[1726896844643,0.3143574,146.05,146.04,56.7492452]
[1726896856573,0.3143574,146.05,146.04,44.027864]
[1726896856848,0.3143574,146.05,146.04,56.7492452]
[1726896866061,0.3143574,146.05,146.02,18.05987391]
[1726896866062,0.3143574,146.05,146.02,12.7213812]
[1726896867258,0.3143574,146.05,146.03,20.0]
[1726896867436,0.3143574,146.05,146.04,43.776884]
[1726896869360,0.3143574,146.05,146.04,20.0]
[1726896869663,0.3143574,146.05,145.99,2.739686]
[1726896869838,0.3143574,146.05,146.0,12.7213812]
[1726896870040,0.3143574,146.05,146.01,12.7213812]
[1726896870361,0.3143574,146.05,146.02,14.09072768]
[1726896870659,0.3143574,146.05,146.02,12.7213812]
[1726896871036,0.3143574,146.05,146.03,43.776884]
[1726896874964,0.3143574,146.05,146.04,25.14621395]
[1726896875331,0.3143574,146.05,146.04,45.14621395]
[1726896875755,0.3143574,146.05,146.04,57.86759515]
[1726896876057,0.3143574,146.05,146.04,56.4982652]
[1726896880245,0.3143574,146.05,146.04,56.7492452]
[1726896891887,0.3143574,146.05,146.04,58.75248297]
[1726896895587,0.3143574,146.05,146.04,56.7492452]
[1726896896008,0.3143574,146.05,146.04,56.6237552]
[1726896897593,0.3143574,146.05,146.04,56.7492452]
[1726896926000,0.2488785,146.09,146.05,44.027864]
[1726896926305,0.2488785,146.09,146.08,32.9723612]
[1726896927801,0.2488785,146.09,146.08,0.25098]
[1726896928116,0.2488785,146.09,146.08,20.0]
[1726896928320,0.2488785,146.09,146.07,0.12549]
[1726896929423,0.2488785,146.09,146.07,0.25098]
[1726896930142,0.2488785,146.09,146.08,20.0]
[1726896930633,0.2488785,146.09,146.04,12.7213812]
[1726896930634,0.2488785,146.09,146.05,20.0]
[1726896931828,0.2488785,146.09,146.08,23.776884]
[1726896932011,0.2488785,146.09,146.08,43.776884]
[1726896932940,16.0895,146.07,145.99,1.18977335]
[1726896933236,16.0895,146.07,146.01,12.7213812]
[1726896934207,16.0895,146.07,146.02,20.0]
[1726896935613,16.0895,146.07,146.03,23.776884]
[1726896936213,16.0895,146.07,146.04,20.0]
[1726896936416,16.0895,146.07,146.05,23.776884]
[1726896947229,16.0895,146.07,145.98,44.027864]
[1726896949044,16.0895,146.07,145.98,43.902374]
[1726896949519,16.0895,146.07,145.98,20.0]
[1726896950940,16.0895,146.07,145.99,23.776884]
[1726896951120,16.0895,146.07,146.0,20.0]
[1726896951319,16.0895,146.07,146.01,23.776884]
[1726896957140,16.0895,146.07,146.02,20.0]
[1726896957339,16.0895,146.07,146.03,23.776884]
[1726896968133,16.0895,146.07,146.05,23.776884]
[1726896968334,0.2488785,146.09,146.05,23.776884]
[1726896968560,0.2488785,146.09,146.07,23.776884]
[1726896971765,0.2488785,146.09,146.01,44.027864]
[1726896971947,0.2488785,146.09,146.01,56.7492452]
[1726896974053,0.2488785,146.09,146.01,43.902374]
[1726896983369,6.4101,146.07,145.96,22.6005]
[1726896983570,15.9103,146.06,145.95,12.7213812]
[1726896983760,15.9103,146.06,145.94,12.9702597]
[1726896984156,0.25098,146.05,145.94,12.9702597]
[1726896984359,15.2422,146.04,145.94,0.2488785]
[1726896984877,15.2422,146.04,145.94,12.9702597]
[1726896985060,15.2422,146.04,145.96,12.7213812]
[1726896985250,15.2422,146.04,145.98,20.0]
[1726896985446,15.2422,146.04,145.99,23.776884]
[1726896986390,15.2422,146.04,146.01,23.776884]
[1726896987477,15.2422,146.04,146.03,23.776884]
[1726896987654,6.4101,146.07,146.03,23.776884]
[1726896988659,15.2422,146.08,146.03,20.0]
[1726896988849,15.2422,146.08,146.04,23.776884]
[1726896989261,15.2422,146.08,146.06,23.776884]
[1726896991851,15.2422,146.08,145.98,20.0]
[1726896992057,15.2422,146.08,145.99,0.12549]
[1726896993261,15.2422,146.08,146.0,12.7213812]
[1726896993565,15.2422,146.08,146.01,44.027864]
[1726896994373,15.2422,146.08,146.01,43.902374]
[1726896996578,15.2422,146.08,146.01,43.776884]
[1726896998773,6.1616,146.07,145.94,6.8421785]
[1726896998974,16.4272,146.06,145.96,12.7213812]
[1726897000070,16.4272,146.06,145.99,36.4982652]
[1726897000281,16.4272,146.06,146.0,20.0]
[1726897000590,16.4272,146.06,146.01,23.776884]
[1726897001068,16.4272,146.06,146.01,25.14638964]
[1726897001773,16.4272,146.06,146.03,23.776884]
[1726897006885,0.2488785,146.09,146.04,20.0]
[1726897007066,0.2488785,146.09,146.05,23.776884]
[1726897008295,0.2488785,146.09,146.05,25.14611578]
[1726897008994,0.2488785,146.09,146.05,23.776884]
[1726897017100,0.2488785,146.09,146.05,25.14613561]
[1726897018192,0.2488785,146.09,146.05,23.776884]
[1726897021199,0.2488785,146.09,146.04,20.0]
[1726897021383,0.2488785,146.09,145.99,20.0]
[1726897022081,0.2488785,146.09,145.98,12.7213812]
[1726897022283,22.0116,146.08,145.98,12.7213812]
[1726897023279,22.0116,146.08,145.99,44.027864]
[1726897023878,22.0116,146.08,145.99,56.7492452]
[1726897024077,22.0116,146.08,146.0,12.7213812]
[1726897024384,22.0116,146.08,146.03,23.776884]
[1726897026503,22.0116,146.08,146.02,44.027864]
[1726897030602,22.0116,146.08,146.02,43.776884]
[1726897031384,22.0116,146.08,145.93,1.19017122]
[1726897031385,15.5783,146.06,145.93,1.19017122]
[1726897031609,15.5783,146.06,145.95,12.7213812]
[1726897031988,15.5783,146.06,145.94,2.28117148]
[1726897032213,15.5783,146.06,145.96,12.7213812]
[1726897032390,15.5783,146.06,145.95,12.7213812]
[1726897033914,15.5783,146.06,145.97,24.027864]
[1726897034303,15.5783,146.06,145.99,23.776884]
[1726897044428,6.45788,146.05,145.94,12.9702597]
[1726897044727,6.45788,146.05,145.95,20.0]
[1726897045935,6.45788,146.05,145.96,23.776884]
[1726897046307,6.45788,146.05,145.98,23.776884]
[1726897046513,16.4059,146.04,145.98,23.776884]
[1726897052024,16.4059,146.04,145.99,20.0]
[1726897052335,16.4059,146.04,146.0,23.776884]
[1726897068832,16.4059,146.04,145.96,20.0]
[1726897069056,16.4059,146.04,145.98,20.0]
[1726897069853,16.4059,146.04,145.94,20.3743685]
[1726897070235,16.4059,146.04,145.95,20.0]
[1726897070441,16.4059,146.04,145.95,21.37001639]
[1726897070643,16.4059,146.04,145.96,12.9723612]
[1726897070832,16.4059,146.04,145.97,21.36983753]
[1726897071032,16.4059,146.04,145.98,23.776884]
[1726897082354,16.4059,146.04,145.98,25.14681699]
[1726897085075,16.4059,146.04,145.98,23.776884]
[1726897098081,0.12549,146.03,145.94,0.2488785]
[1726897098257,0.25098,146.03,145.94,24.0257625]
[1726897098456,0.25098,146.03,145.96,23.776884]
[1726897098679,0.25098,146.03,145.94,0.2488785]
[1726897099061,16.3055,146.02,145.94,0.2488785]
[1726897100069,16.3055,146.02,145.94,20.2488785]
[1726897100276,16.3055,146.02,145.95,23.776884]
[1726897100684,6.4234,146.01,145.95,23.776884]
[1726897106292,6.4234,146.01,145.95,25.14714854]
[1726897106590,16.3055,146.02,145.95,25.14714854]
[1726897106591,16.3055,146.02,145.96,20.0]
[1726897106777,16.3055,146.02,145.97,23.776884]
[1726897113502,16.3055,146.02,145.99,23.776884]
[1726897113682,16.3055,146.02,145.97,23.776884]
[1726897113997,16.3055,146.02,145.99,23.776884]
[1726897126108,16.3055,146.02,145.98,23.776884]
[1726897134406,16.3055,146.02,145.98,20.0]
[1726897134604,16.3055,146.02,145.99,23.776884]
[1726897135021,16.3055,146.02,145.98,20.0]
[1726897135407,16.3055,146.02,145.99,23.776884]
[1726897141101,16.3055,146.02,145.94,0.2488785]
[1726897141426,7.1476225,146.08,145.94,0.2488785]
[1726897141427,6.32359,146.01,145.94,0.2488785]
[1726897141602,15.2185,146.0,145.94,0.2488785]
[1726897142412,15.2185,146.0,145.94,12.9702597]
[1726897142619,15.2185,146.0,145.95,21.37006615]
[1726897143022,15.2185,146.0,145.96,23.776884]
[1726897149039,15.2185,146.0,145.96,25.1468743]
[1726897149607,15.2185,146.04,145.97,20.0]
[1726897149807,15.2185,146.04,145.98,23.776884]
[1726897150013,15.2185,146.04,146.0,23.776884]
[1726897157043,15.2185,146.04,145.96,23.776884]
[1726897157351,15.2185,146.04,145.98,23.776884]
[1726897176044,15.2185,146.04,145.99,1.3699122]
[1726897176348,15.2185,146.04,145.97,36.4982652]
[1726897176547,15.2185,146.04,145.96,36.4982652]
[1726897176767,15.2185,146.04,145.98,23.776884]
[1726897210390,15.2185,146.04,146.0,36.4982652]
[1726897210680,15.2185,146.04,146.02,23.776884]
[1726897210877,6.0693,146.08,146.02,23.776884]
[1726897210878,21.2864,146.08,146.02,23.776884]
[1726897211080,21.2864,146.08,146.04,23.776884]
[1726897221367,15.2171,146.08,146.04,23.776884]
[1726897226189,14.0705433,146.11,146.04,23.776884]
[1726897226392,14.0705433,146.11,146.04,23.276884]
[1726897232182,15.26112562,146.11,146.04,23.276884]
[1726897236707,15.26112562,146.11,146.01,12.7213812]
[1726897237003,0.12549,146.08,146.02,23.776884]
[1726897239905,44.027864,146.06,145.93,22.1806]
[1726897240111,6.8483,146.02,145.93,22.1806]
[1726897240413,7.09978,146.01,145.9,28.4726812]
[1726897240588,7.09978,146.01,145.9,34.9019812]
[1726897240791,0.25098,146.01,145.9,34.9019812]
[1726897240987,0.12549,146.01,145.91,12.7213812]
[1726897241202,0.12549,146.01,145.92,12.7213812]
[1726897241602,0.12549,146.01,145.93,23.776884]
[1726897252694,30.58161568,146.02,145.93,23.776884]
[1726897252695,23.73331568,146.02,145.95,23.776884]
[1726897253087,23.73331568,146.02,145.97,23.776884]
[1726897253291,16.6002,146.02,145.97,23.776884]
[1726897253519,29.44073144,146.06,145.96,23.776884]
[1726897253692,29.44073144,146.06,145.98,23.776884]
[1726897255388,0.25098,146.05,145.98,23.776884]
[1726897266626,22.59423144,146.06,146.0,23.776884]
[1726897266817,22.59423144,146.06,145.99,1.36985284]
[1726897266818,15.4626,146.06,145.98,23.776884]
[1726897269629,0.12549,146.05,145.98,20.0]
[1726897269815,0.25098,146.05,145.98,20.0]
[1726897270012,7.09788,146.05,145.95,21.9308]
[1726897270221,7.09788,146.05,145.96,20.0]
[1726897270824,7.09788,146.05,145.94,20.2488785]
[1726897271407,7.09788,146.05,145.95,24.027864]
[1726897271605,7.09788,146.05,145.95,23.776884]
[1726897271821,6.82648,146.02,145.94,0.2488785]
[1726897272822,13.67488,146.02,145.94,0.2488785]
[1726897274625,14.86673181,146.02,145.94,0.2488785]
[1726897274819,6.8498,145.99,145.94,0.2488785]
[1726897275024,0.12549,145.99,145.94,0.2488785]
[1726897276239,15.7788,145.98,145.94,0.2488785]
[1726897290455,15.7788,145.98,145.89,32.7213812]
[1726897290653,15.7788,145.98,145.91,20.0]
[1726897290835,15.7788,145.98,145.92,23.776884]
[1726897298046,0.12549,145.97,145.89,20.0]
[1726897298442,0.12549,145.97,145.9,23.776884]
[1726897300557,6.77549,145.97,145.9,23.776884]
[1726897308558,6.65,145.97,145.91,1.37056272]
[1726897308778,6.65,145.97,145.92,23.776884]
[1726897309475,0.1606942,145.99,145.94,36.4982652]
[1726897309681,0.1606942,145.99,145.96,23.776884]
[1726897309872,0.1606942,145.99,145.96,36.4982652]
[1726897310183,0.1606942,145.99,145.98,23.776884]
[1726897311158,0.1606942,145.99,145.97,23.776884]
[1726897318394,0.1606942,145.99,145.87,22.4741]
[1726897318562,0.1606942,145.99,145.92,12.7213812]
[1726897318863,0.1606942,145.99,145.93,14.09150946]
[1726897319063,0.1606942,145.99,145.94,1.37010057]
[1726897320390,0.1606942,145.99,145.93,12.7213812]
[1726897320964,0.1606942,145.99,145.94,23.776884]
[1726897322374,0.1606942,145.99,145.93,23.776884]
[1726897324390,0.1606942,145.99,145.94,23.776884]
[1726897334995,0.1606942,145.99,145.96,23.776884]
[1726897335185,0.1606942,145.99,145.98,23.776884]
[1726897336796,0.1606942,145.99,145.94,0.12549]
[1726897336997,0.1606942,145.99,145.94,23.902374]
[1726897337198,0.1606942,145.99,145.94,23.776884]
[1726897345583,0.1606942,145.99,145.95,1.37010926]
[1726897348609,0.1606942,145.99,145.94,23.776884]
[1726897349111,0.1606942,145.99,145.95,1.3701073]
[1726897349312,0.1606942,145.99,145.94,23.776884]
[1726897349519,0.1606942,145.99,145.95,1.37010732]
[1726897349817,0.1606942,145.99,145.94,23.776884]
[1726897349995,0.1606942,145.99,145.95,1.37010657]
[1726897350197,0.1606942,145.99,145.94,23.776884]
[1726897351416,0.1606942,145.99,145.95,1.37010766]
[1726897351588,0.1606942,145.99,145.96,23.776884]
[1726897352099,0.1606942,145.99,145.95,23.776884]
[1726897354415,0.1606942,145.99,145.94,23.776884]
[1726897364417,0.1606942,145.99,145.96,23.776884]
[1726897366526,0.1606942,145.99,145.95,23.776884]
[1726897367120,0.1606942,145.99,145.94,23.776884]
[1726897369811,16.4662,145.98,145.9,20.0]
[1726897370015,16.4662,145.98,145.88,12.8102481]
[1726897370797,16.4662,145.98,145.89,23.902374]
[1726897370996,16.4662,145.98,145.88,12.8102481]
[1726897371411,16.4662,145.98,145.89,32.7213812]
[1726897371820,16.4662,145.98,145.91,20.0]
[1726897372404,16.4662,145.98,145.92,23.776884]
[1726897382043,0.12549,145.97,145.89,20.0]
[1726897382362,0.12549,145.97,145.9,23.776884]
[1726897382643,0.12549,145.97,145.89,23.776884]
[1726897382817,0.12549,145.97,145.91,23.776884]
[1726897394042,16.2327,145.94,145.88,0.0888669]
[1726897394251,22.8128,145.94,145.88,0.0888669]
[1726897395231,0.25098,145.93,145.88,0.0888669]
[1726897395434,0.12549,145.93,145.88,0.0888669]
[1726897400721,0.25098,145.93,145.88,0.0888669]
[1726897410740,0.12549,145.93,145.88,0.0888669]
[1726897412974,22.8128,145.94,145.88,0.0888669]
[1726897413332,0.25098,145.93,145.88,0.0888669]
[1726897425263,7.10358,145.93,145.88,0.0888669]
[1726897425982,0.25098,145.93,145.88,0.0888669]
[1726897447678,7.10358,145.93,145.88,0.0888669]
[1726897463101,0.25098,145.93,145.88,0.0888669]
[1726897463506,36.79753589,145.94,145.88,0.0888669]
[1726897463507,29.94543589,145.94,145.88,0.0888669]
[1726897463804,22.8128,145.94,145.88,0.0888669]
[1726897464772,0.12549,145.93,145.88,0.0888669]
[1726897468594,0.25098,145.93,145.88,0.0888669]
[1726897473403,7.10358,145.93,145.88,0.0888669]
[1726897489810,0.25098,145.93,145.88,0.0888669]
[1726897490394,27.10358,145.93,145.88,0.0888669]
[1726897495123,6.8534,145.92,145.88,0.0888669]
[1726897495309,0.25098,145.91,145.88,0.0888669]
[1726897500510,0.25098,145.92,145.88,0.0888669]
[1726897505203,0.25098,145.93,145.88,0.0888669]
[1726897505403,31.13667597,145.94,145.88,0.0888669]
[1726897505404,24.55657597,145.94,145.88,0.0888669]
[1726897505712,16.2327,145.94,145.88,0.0888669]
[1726897507407,0.12549,145.93,145.88,0.0888669]
[1726897508017,0.25098,145.93,145.88,0.0888669]
[1726897511041,0.12549,145.93,145.88,0.0888669]
[1726897512533,0.25098,145.93,145.88,0.0888669]
[1726897522334,16.2327,145.94,145.88,0.0888669]
[1726897523958,6.3248,145.98,145.91,23.776884]
[1726897523959,15.0896,145.98,145.91,23.776884]
[1726897524441,15.0896,145.98,145.9,23.776884]
[1726897525757,15.0896,145.98,145.92,23.776884]
[1726897526252,15.0896,145.98,145.93,1.37034105]
[1726897528467,0.1606942,145.99,145.93,23.776884]
[1726897529236,0.1606942,145.99,145.94,1.37020681]
[1726897530848,0.1606942,145.99,145.93,36.4982652]
[1726897531960,0.1606942,145.99,145.94,12.7213812]
[1726897532165,0.1606942,145.99,145.96,23.776884]
[1726897534858,0.1606942,145.99,145.97,1.36991274]
[1726897535163,0.1606942,145.99,145.96,23.776884]
[1726897541272,0.1606942,145.99,145.97,1.36991186]
[1726897541681,0.1606942,145.99,145.96,23.776884]
[1726897543057,0.1606942,145.99,145.94,20.0]
[1726897543058,0.1606942,145.99,145.97,37.86817659]
[1726897544079,0.1606942,145.99,145.97,36.4982652]
[1726897544277,0.1606942,145.99,145.97,23.776884]
[1726897546963,0.1606942,145.99,145.97,36.4982652]
[1726897548178,0.1606942,145.99,145.97,23.776884]
[1726897556890,0.1606942,145.99,145.98,25.14669188]
[1726897557094,0.1606942,145.99,145.98,23.776884]
[1726897557589,0.1606942,145.99,145.97,43.776884]
[1726897559493,0.1606942,145.99,145.97,56.4982652]
[1726897559677,0.1606942,145.99,145.98,25.14667143]
[1726897560075,0.1606942,145.99,145.98,36.4982652]
[1726897560283,0.1606942,145.99,145.98,56.4982652]
[1726897561590,0.1606942,145.99,145.98,43.776884]
[1726897570185,0.1606942,145.99,145.98,20.0]
[1726897570374,0.1606942,145.99,145.92,2.10193134]
[1726897570375,0.1606942,145.99,145.92,14.69782254]
[1726897570690,0.1606942,145.99,145.91,12.7213812]
[1726897572403,0.1606942,145.99,145.93,23.776884]